[Event "Early-Titled-Tuesday-Blitz-August-29-2023"]
[Site "Chess.com"]
[Date "2023.08.29"]
[Round "5"]
[White "YellowJacek"]
[Black "bazar-wokzal"]
[Result "0-1"]
[WhiteElo "2355"]
[BlackElo "2588"]
[TimeControl "180+1"]
[EndTime "8:50:59 PDT"]
[Termination "bazar-wokzal won by resignation"]

1. d4 {[%clk 0:01:51]} 1... Nf6 {[%clk 0:02:58.9]} 2. c4 {[%clk 0:01:50]} 2...
Nc6 {[%clk 0:02:58.3]} 3. Nc3 {[%clk 0:01:50.5]} 3... e5 {[%clk 0:02:58]} 4.
dxe5 {[%clk 0:01:49.4]} 4... Nxe5 {[%clk 0:02:58]} 5. e4 {[%clk 0:01:47.8]} 5...
Bc5 {[%clk 0:02:57.5]} 6. h3 {[%clk 0:01:45.7]} 6... O-O {[%clk 0:02:55.5]} 7.
Be2 {[%clk 0:01:45]} 7... d6 {[%clk 0:02:54.3]} 8. Nf3 {[%clk 0:01:44.8]} 8...
Nxf3+ {[%clk 0:02:50.2]} 9. Bxf3 {[%clk 0:01:45.7]} 9... Be6 {[%clk 0:02:50.6]}
10. b3 {[%clk 0:01:44.8]} 10... Re8 {[%clk 0:02:45]} 11. O-O {[%clk 0:01:43.7]}
11... Nd7 {[%clk 0:02:41.2]} 12. Bb2 {[%clk 0:01:40.3]} 12... Qh4 {[%clk
0:02:37.7]} 13. Be2 {[%clk 0:01:24]} 13... Bxh3 {[%clk 0:02:32.3]} 14. gxh3
{[%clk 0:01:23.4]} 14... Qg3+ {[%clk 0:02:32.2]} 15. Kh1 {[%clk 0:01:22.9]}
15... Qxh3+ {[%clk 0:02:32.7]} 16. Kg1 {[%clk 0:01:23.4]} 16... Re6 {[%clk
0:02:29.9]} 0-1

[Event "Early-Titled-Tuesday-Blitz-August-29-2023"]
[Site "Chess.com"]
[Date "2023.08.29"]
[Round "5"]
[White "suyu28"]
[Black "LileKoridze"]
[Result "0-1"]
[WhiteElo "2722"]
[BlackElo "2355"]
[TimeControl "180+1"]
[EndTime "8:51:19 PDT"]
[Termination "LileKoridze won by checkmate"]

1. d4 {[%clk 0:03:00.9]} 1... Nf6 {[%clk 0:02:59.7]} 2. Bf4 {[%clk 0:03:01.5]}
2... d5 {[%clk 0:02:59.1]} 3. e3 {[%clk 0:03:02.1]} 3... e6 {[%clk 0:02:59.3]}
4. Nd2 {[%clk 0:03:01.7]} 4... Bd6 {[%clk 0:02:59.1]} 5. Bg3 {[%clk 0:03:01.5]}
5... O-O {[%clk 0:02:58.3]} 6. Ngf3 {[%clk 0:03:01.9]} 6... c5 {[%clk 0:02:58]}
7. c3 {[%clk 0:03:02.4]} 7... Nc6 {[%clk 0:02:57.4]} 8. Bd3 {[%clk 0:03:02.2]}
8... Qc7 {[%clk 0:02:57.1]} 9. dxc5 {[%clk 0:02:59.4]} 9... Bxg3 {[%clk
0:02:55.5]} 10. hxg3 {[%clk 0:03:00.3]} 10... h6 {[%clk 0:02:56]} 11. Qe2 {[%clk
0:02:59.2]} 11... a5 {[%clk 0:02:54.7]} 12. a4 {[%clk 0:02:57.8]} 12... e5
{[%clk 0:02:52.5]} 13. e4 {[%clk 0:02:57.8]} 13... d4 {[%clk 0:02:49.1]} 14.
cxd4 {[%clk 0:02:55.3]} 14... exd4 {[%clk 0:02:49.3]} 15. e5 {[%clk 0:02:51.8]}
15... Ng4 {[%clk 0:02:49.3]} 16. Qe4 {[%clk 0:02:42.8]} 16... g6 {[%clk
0:02:49.2]} 17. Qf4 {[%clk 0:02:01.2]} 17... Ncxe5 {[%clk 0:02:32]} 18. Kf1
{[%clk 0:02:00.4]} 18... Qxc5 {[%clk 0:02:24.1]} 19. Be4 {[%clk 0:01:47.1]}
19... h5 {[%clk 0:02:19.1]} 20. Kg1 {[%clk 0:01:40]} 20... Kg7 {[%clk
0:02:08.4]} 21. Nb3 {[%clk 0:01:39.7]} 21... Qb4 {[%clk 0:02:03.5]} 22. Nbxd4
{[%clk 0:01:38.2]} 22... Qxb2 {[%clk 0:02:01.8]} 23. Rb1 {[%clk 0:01:36.3]}
23... Qxf2# {[%clk 0:02:01.4]} 0-1

[Event "Early-Titled-Tuesday-Blitz-August-29-2023"]
[Site "Chess.com"]
[Date "2023.08.29"]
[Round "5"]
[White "chess94cu"]
[Black "BillieKimbah"]
[Result "0-1"]
[WhiteElo "2705"]
[BlackElo "3031"]
[TimeControl "180+1"]
[EndTime "8:52:25 PDT"]
[Termination "BillieKimbah won by resignation"]

1. d4 {[%clk 0:03:00.9]} 1... Nf6 {[%clk 0:02:57.4]} 2. c4 {[%clk 0:03:01.1]}
2... e6 {[%clk 0:02:57.7]} 3. Nf3 {[%clk 0:02:59.7]} 3... d5 {[%clk 0:02:57.8]}
4. Nc3 {[%clk 0:02:59]} 4... Nbd7 {[%clk 0:02:55.7]} 5. cxd5 {[%clk 0:02:56.8]}
5... exd5 {[%clk 0:02:56.6]} 6. Bg5 {[%clk 0:02:56.8]} 6... c6 {[%clk 0:02:56]}
7. e3 {[%clk 0:02:57.2]} 7... h6 {[%clk 0:02:55.8]} 8. Bh4 {[%clk 0:02:56.7]}
8... g5 {[%clk 0:02:56]} 9. Bg3 {[%clk 0:02:56.6]} 9... Nh5 {[%clk 0:02:56.2]}
10. Bd3 {[%clk 0:02:53.4]} 10... Nxg3 {[%clk 0:02:55.4]} 11. hxg3 {[%clk
0:02:53.2]} 11... Bg7 {[%clk 0:02:56.1]} 12. Qc2 {[%clk 0:02:48.3]} 12... Qe7
{[%clk 0:02:48]} 13. Rb1 {[%clk 0:02:42.2]} 13... Nb6 {[%clk 0:02:44.2]} 14. Bf5
{[%clk 0:02:38.6]} 14... g4 {[%clk 0:02:39]} 15. Nd2 {[%clk 0:01:57.4]} 15...
Bxd4 {[%clk 0:02:30.6]} 16. Ne2 {[%clk 0:01:57.2]} 16... Be5 {[%clk 0:02:26.7]}
17. Bxc8 {[%clk 0:01:53.9]} 17... Nxc8 {[%clk 0:02:22.6]} 18. b4 {[%clk
0:01:46.9]} 18... Nd6 {[%clk 0:02:21.3]} 19. a4 {[%clk 0:01:43.2]} 19... a6
{[%clk 0:02:20.5]} 20. Kf1 {[%clk 0:01:22.7]} 20... h5 {[%clk 0:02:19.2]} 21.
Qd3 {[%clk 0:00:55.9]} 21... h4 {[%clk 0:02:15.8]} 22. Nb3 {[%clk 0:00:49.2]}
22... O-O-O {[%clk 0:02:11.2]} 23. gxh4 {[%clk 0:00:42.6]} 23... Rxh4 {[%clk
0:02:12.1]} 24. Rxh4 {[%clk 0:00:42.4]} 24... Qxh4 {[%clk 0:02:13]} 25. Nbd4
{[%clk 0:00:40.5]} 25... Ne4 {[%clk 0:02:08.2]} 26. g3 {[%clk 0:00:38.9]} 26...
Qh2 {[%clk 0:02:05.3]} 0-1

[Event "Early-Titled-Tuesday-Blitz-August-29-2023"]
[Site "Chess.com"]
[Date "2023.08.29"]
[Round "5"]
[White "vladgoncharov"]
[Black "ValentunHulka"]
[Result "0-1"]
[WhiteElo "2566"]
[BlackElo "2756"]
[TimeControl "180+1"]
[EndTime "8:52:36 PDT"]
[Termination "ValentunHulka won by resignation"]

1. d4 {[%clk 0:03:00.9]} 1... Nf6 {[%clk 0:03:00.1]} 2. c4 {[%clk 0:02:59.2]}
2... e6 {[%clk 0:03:00.5]} 3. Nf3 {[%clk 0:02:56.9]} 3... d5 {[%clk 0:03:00.6]}
4. Nc3 {[%clk 0:02:55.7]} 4... c5 {[%clk 0:03:01]} 5. cxd5 {[%clk 0:02:55]} 5...
cxd4 {[%clk 0:03:01.7]} 6. Qa4+ {[%clk 0:02:53.3]} 6... Bd7 {[%clk 0:03:01.8]}
7. Qxd4 {[%clk 0:02:49.5]} 7... exd5 {[%clk 0:03:02.5]} 8. Bg5 {[%clk
0:02:38.3]} 8... Nc6 {[%clk 0:03:02.5]} 9. Qd1 {[%clk 0:02:37.9]} 9... Be6
{[%clk 0:03:00]} 10. e3 {[%clk 0:02:37.6]} 10... Be7 {[%clk 0:02:59.4]} 11. Bb5
{[%clk 0:02:33.4]} 11... O-O {[%clk 0:02:59.3]} 12. O-O {[%clk 0:02:32.9]} 12...
h6 {[%clk 0:02:59.5]} 13. Bh4 {[%clk 0:02:31.2]} 13... Qb6 {[%clk 0:02:58.7]}
14. Rc1 {[%clk 0:02:23.1]} 14... Rac8 {[%clk 0:02:54.7]} 15. b3 {[%clk
0:02:16.8]} 15... Rfd8 {[%clk 0:02:51.5]} 16. Bxc6 {[%clk 0:02:08.8]} 16... bxc6
{[%clk 0:02:50.1]} 17. Na4 {[%clk 0:02:07.6]} 17... Qb4 {[%clk 0:02:41.8]} 18.
Nd4 {[%clk 0:02:00.7]} 18... Bd7 {[%clk 0:02:36.2]} 19. Qf3 {[%clk 0:01:41.6]}
19... g5 {[%clk 0:02:25.8]} 20. Qg3 {[%clk 0:00:51.7]} 20... Ne4 {[%clk
0:02:18.5]} 21. Qf3 {[%clk 0:00:50.4]} 21... gxh4 {[%clk 0:02:14.8]} 22. Qh5
{[%clk 0:00:48.6]} 22... Qd6 {[%clk 0:02:12.4]} 23. f3 {[%clk 0:00:44.2]} 23...
Ng5 {[%clk 0:02:08.3]} 24. f4 {[%clk 0:00:36.4]} 24... Ne4 {[%clk 0:02:03.9]}
25. f5 {[%clk 0:00:36.7]} 25... Bg5 {[%clk 0:02:02.6]} 26. Rf3 {[%clk
0:00:29.9]} 26... Nf6 {[%clk 0:02:00.5]} 0-1

[Event "Early-Titled-Tuesday-Blitz-August-29-2023"]
[Site "Chess.com"]
[Date "2023.08.29"]
[Round "5"]
[White "masenik"]
[Black "noblerone"]
[Result "1-0"]
[WhiteElo "2421"]
[BlackElo "2546"]
[TimeControl "180+1"]
[EndTime "8:52:49 PDT"]
[Termination "masenik won by checkmate"]

1. e4 {[%clk 0:03:00.9]} 1... c5 {[%clk 0:02:37.3]} 2. Nf3 {[%clk 0:03:00.5]}
2... e6 {[%clk 0:02:36]} 3. d4 {[%clk 0:03:00.4]} 3... cxd4 {[%clk 0:02:31.9]}
4. Nxd4 {[%clk 0:03:01.3]} 4... Qb6 {[%clk 0:02:29.8]} 5. Nb3 {[%clk 0:02:57.1]}
5... Qc7 {[%clk 0:02:29.6]} 6. Be2 {[%clk 0:02:50.9]} 6... Nf6 {[%clk
0:02:28.6]} 7. Bf3 {[%clk 0:02:29.4]} 7... b6 {[%clk 0:02:22.9]} 8. O-O {[%clk
0:02:26.1]} 8... Bb7 {[%clk 0:02:23]} 9. Nc3 {[%clk 0:02:25.6]} 9... a6 {[%clk
0:02:22.4]} 10. a3 {[%clk 0:02:22.5]} 10... d6 {[%clk 0:02:17.2]} 11. Re1 {[%clk
0:02:22.1]} 11... Nbd7 {[%clk 0:02:07.4]} 12. g3 {[%clk 0:02:20]} 12... Be7
{[%clk 0:02:01.1]} 13. Bg2 {[%clk 0:02:19.3]} 13... O-O {[%clk 0:02:00.8]} 14.
h3 {[%clk 0:02:17.8]} 14... Rac8 {[%clk 0:01:57.5]} 15. f4 {[%clk 0:02:16.6]}
15... Qb8 {[%clk 0:01:50.4]} 16. g4 {[%clk 0:02:03.8]} 16... Nc5 {[%clk
0:01:48.2]} 17. Nd4 {[%clk 0:01:56]} 17... Rfd8 {[%clk 0:01:42]} 18. g5 {[%clk
0:01:54.3]} 18... Nfd7 {[%clk 0:01:41.2]} 19. Qg4 {[%clk 0:01:49.5]} 19... Nf8
{[%clk 0:01:40]} 20. f5 {[%clk 0:01:41]} 20... exf5 {[%clk 0:01:23.6]} 21. Nxf5
{[%clk 0:01:33]} 21... Qc7 {[%clk 0:01:18.8]} 22. Nd5 {[%clk 0:01:30.3]} 22...
Bxd5 {[%clk 0:01:14.6]} 23. exd5 {[%clk 0:01:31.2]} 23... Re8 {[%clk 0:01:13.3]}
24. Qd4 {[%clk 0:00:59.4]} 24... Ng6 {[%clk 0:01:07]} 25. Qxg7# {[%clk
0:00:58.5]} 1-0

[Event "Early-Titled-Tuesday-Blitz-August-29-2023"]
[Site "Chess.com"]
[Date "2023.08.29"]
[Round "5"]
[White "expii"]
[Black "Sunny_Star"]
[Result "0-1"]
[WhiteElo "2254"]
[BlackElo "2085"]
[TimeControl "180+1"]
[EndTime "8:52:49 PDT"]
[Termination "Sunny_Star won by resignation"]

1. e4 {[%clk 0:03:00.9]} 1... b6 {[%clk 0:02:00.4]} 2. d4 {[%clk 0:02:56]} 2...
Bb7 {[%clk 0:01:57.6]} 3. Nc3 {[%clk 0:02:55.1]} 3... d6 {[%clk 0:01:57]} 4. Nf3
{[%clk 0:02:53.6]} 4... Nd7 {[%clk 0:01:55.8]} 5. Bf4 {[%clk 0:02:46.3]} 5... g6
{[%clk 0:01:54.5]} 6. e5 {[%clk 0:02:39.9]} 6... Bg7 {[%clk 0:01:53.6]} 7. Bb5
{[%clk 0:02:25.5]} 7... Nh6 {[%clk 0:01:45.7]} 8. d5 {[%clk 0:02:15.2]} 8... O-O
{[%clk 0:01:43]} 9. exd6 {[%clk 0:02:09.1]} 9... exd6 {[%clk 0:01:17.9]} 10. O-O
{[%clk 0:02:07.1]} 10... a6 {[%clk 0:01:07.8]} 11. Bxd7 {[%clk 0:01:44.6]} 11...
Qxd7 {[%clk 0:01:07.1]} 12. Qd2 {[%clk 0:01:45.5]} 12... Nf5 {[%clk 0:01:05.9]}
13. Rae1 {[%clk 0:01:44.3]} 13... Rae8 {[%clk 0:00:56.9]} 14. Ne4 {[%clk
0:01:37.9]} 14... Qb5 {[%clk 0:00:37.7]} 15. Rd1 {[%clk 0:01:17.2]} 15... Rxe4
{[%clk 0:00:31.9]} 0-1

[Event "Early-Titled-Tuesday-Blitz-August-29-2023"]
[Site "Chess.com"]
[Date "2023.08.29"]
[Round "5"]
[White "pankajfm"]
[Black "Zampronha1971"]
[Result "0-1"]
[WhiteElo "2092"]
[BlackElo "2282"]
[TimeControl "180+1"]
[EndTime "8:52:54 PDT"]
[Termination "Zampronha1971 won by resignation"]

1. e4 {[%clk 0:02:58]} 1... c5 {[%clk 0:02:59.9]} 2. b3 {[%clk 0:02:58.4]} 2...
d5 {[%clk 0:02:58.8]} 3. exd5 {[%clk 0:02:56.5]} 3... Qxd5 {[%clk 0:02:59.7]} 4.
Nc3 {[%clk 0:02:48.9]} 4... Qd8 {[%clk 0:02:58.7]} 5. Nf3 {[%clk 0:02:48.6]}
5... Nc6 {[%clk 0:02:59.1]} 6. Bb5 {[%clk 0:02:48.2]} 6... Bd7 {[%clk
0:02:58.5]} 7. Bb2 {[%clk 0:02:47.8]} 7... Nf6 {[%clk 0:02:57.7]} 8. O-O {[%clk
0:02:47.6]} 8... e6 {[%clk 0:02:58.4]} 9. Re1 {[%clk 0:02:47.6]} 9... Be7 {[%clk
0:02:58.4]} 10. Ne4 {[%clk 0:02:46.3]} 10... O-O {[%clk 0:02:52.3]} 11. d3
{[%clk 0:02:20.7]} 11... Rc8 {[%clk 0:02:51.6]} 12. Qd2 {[%clk 0:02:19.2]} 12...
a6 {[%clk 0:02:48.8]} 13. Bxc6 {[%clk 0:02:16.7]} 13... Bxc6 {[%clk 0:02:49.7]}
14. Nxf6+ {[%clk 0:01:47.2]} 14... Bxf6 {[%clk 0:02:49.1]} 15. Bxf6 {[%clk
0:01:47.3]} 15... Qxf6 {[%clk 0:02:49.4]} 16. Qg5 {[%clk 0:01:47.8]} 16... Bxf3
{[%clk 0:02:44.6]} 17. Qxf6 {[%clk 0:01:47.1]} 17... gxf6 {[%clk 0:02:45.5]} 18.
gxf3 {[%clk 0:01:47.7]} 18... Rfd8 {[%clk 0:02:40]} 19. Re4 {[%clk 0:01:45.4]}
19... f5 {[%clk 0:02:37.7]} 20. Re5 {[%clk 0:01:43.2]} 20... Kg7 {[%clk
0:02:29.9]} 21. Kg2 {[%clk 0:01:42.3]} 21... Kf6 {[%clk 0:02:30.4]} 22. Ree1
{[%clk 0:01:38.3]} 22... b5 {[%clk 0:02:26.2]} 23. Kh3 {[%clk 0:01:37.5]} 23...
c4 {[%clk 0:02:26]} 24. dxc4 {[%clk 0:01:23.2]} 24... bxc4 {[%clk 0:02:26.9]}
25. Re2 {[%clk 0:01:23.6]} 25... Rd4 {[%clk 0:02:15.2]} 26. Kg3 {[%clk
0:01:14.6]} 26... Rg8+ {[%clk 0:02:13.4]} 27. Kh3 {[%clk 0:01:12.4]} 27... Rg5
{[%clk 0:01:57.4]} 28. b4 {[%clk 0:00:53.2]} 28... Rd8 {[%clk 0:01:55.4]} 29. a4
{[%clk 0:00:48.8]} 29... Rdg8 {[%clk 0:01:54.7]} 30. Kh4 {[%clk 0:00:43.4]}
30... R8g6 {[%clk 0:01:51.9]} 0-1

[Event "Early-Titled-Tuesday-Blitz-August-29-2023"]
[Site "Chess.com"]
[Date "2023.08.29"]
[Round "5"]
[White "AttilaTurzo"]
[Black "Goi_Manne"]
[Result "1-0"]
[WhiteElo "2507"]
[BlackElo "2322"]
[TimeControl "180+1"]
[EndTime "8:52:56 PDT"]
[Termination "AttilaTurzo won by resignation"]

1. d4 {[%clk 0:03:00.9]} 1... d5 {[%clk 0:02:57.4]} 2. Nf3 {[%clk 0:03:00.2]}
2... Bf5 {[%clk 0:02:49.7]} 3. Bf4 {[%clk 0:02:58.7]} 3... e6 {[%clk 0:02:46.6]}
4. e3 {[%clk 0:02:58.7]} 4... c6 {[%clk 0:02:44.2]} 5. c4 {[%clk 0:02:56.4]}
5... Nf6 {[%clk 0:02:41.3]} 6. Qb3 {[%clk 0:02:53.4]} 6... Qb6 {[%clk
0:02:40.9]} 7. c5 {[%clk 0:02:51.2]} 7... Qxb3 {[%clk 0:02:40.8]} 8. axb3 {[%clk
0:02:51.8]} 8... Nbd7 {[%clk 0:02:38.3]} 9. b4 {[%clk 0:02:51.6]} 9... Nh5
{[%clk 0:02:36.1]} 10. b5 {[%clk 0:02:44]} 10... Nxf4 {[%clk 0:02:34.7]} 11.
exf4 {[%clk 0:02:44.9]} 11... cxb5 {[%clk 0:02:17.3]} 12. Bxb5 {[%clk
0:02:42.4]} 12... f6 {[%clk 0:02:08.5]} 13. b4 {[%clk 0:02:35.3]} 13... Be7
{[%clk 0:02:05.8]} 14. Nc3 {[%clk 0:02:33.6]} 14... Kd8 {[%clk 0:01:58.7]} 15.
Kd2 {[%clk 0:02:32.3]} 15... Kc7 {[%clk 0:01:55.6]} 16. Rhe1 {[%clk 0:02:24.1]}
16... a6 {[%clk 0:01:54.2]} 17. Bd3 {[%clk 0:02:18.8]} 17... Bxd3 {[%clk
0:01:26.2]} 18. Rxe6 {[%clk 0:02:17.9]} 18... Be4 {[%clk 0:01:19.1]} 19. Rxe7
{[%clk 0:02:14.7]} 19... Rae8 {[%clk 0:01:13.3]} 20. Rxg7 {[%clk 0:02:12.1]}
20... Rhg8 {[%clk 0:01:09.1]} 21. Rxg8 {[%clk 0:01:52.7]} 21... Rxg8 {[%clk
0:01:10]} 22. Nh4 {[%clk 0:01:42.2]} 22... Rg4 {[%clk 0:00:59.6]} 23. g3 {[%clk
0:01:37.5]} 23... Rg8 {[%clk 0:00:53.2]} 24. f3 {[%clk 0:01:23.8]} 24... Bg6
{[%clk 0:00:44.4]} 25. Nxd5+ {[%clk 0:01:20.5]} 25... Kc6 {[%clk 0:00:45]} 26.
Ne7+ {[%clk 0:01:20.3]} 1-0

[Event "Early-Titled-Tuesday-Blitz-August-29-2023"]
[Site "Chess.com"]
[Date "2023.08.29"]
[Round "5"]
[White "Alexander_Donchenko"]
[Black "Alexei_Gubajdullin"]
[Result "1-0"]
[WhiteElo "2853"]
[BlackElo "2631"]
[TimeControl "180+1"]
[EndTime "8:53:00 PDT"]
[Termination "Alexander_Donchenko won by resignation"]

1. c4 {[%clk 0:03:00.6]} 1... g6 {[%clk 0:02:58.9]} 2. g3 {[%clk 0:03:01]} 2...
Bg7 {[%clk 0:02:58.7]} 3. Bg2 {[%clk 0:03:01.9]} 3... e6 {[%clk 0:02:49.6]} 4.
Nc3 {[%clk 0:03:01]} 4... Ne7 {[%clk 0:02:49.6]} 5. d4 {[%clk 0:02:59.8]} 5...
d6 {[%clk 0:02:45.5]} 6. Nf3 {[%clk 0:02:59.8]} 6... Nd7 {[%clk 0:02:45.6]} 7.
O-O {[%clk 0:02:58.2]} 7... O-O {[%clk 0:02:45.2]} 8. b4 {[%clk 0:02:53.2]} 8...
b6 {[%clk 0:02:42.9]} 9. Bb2 {[%clk 0:02:48.5]} 9... Bb7 {[%clk 0:02:42.7]} 10.
e4 {[%clk 0:02:48.7]} 10... h6 {[%clk 0:02:41.5]} 11. b5 {[%clk 0:02:47.1]}
11... Kh7 {[%clk 0:02:40.2]} 12. a4 {[%clk 0:02:46]} 12... a5 {[%clk 0:02:29]}
13. Qc2 {[%clk 0:02:44.6]} 13... e5 {[%clk 0:02:25]} 14. Rad1 {[%clk 0:02:42.6]}
14... exd4 {[%clk 0:02:21.5]} 15. Nxd4 {[%clk 0:02:43.5]} 15... Nc5 {[%clk
0:02:21.5]} 16. Nd5 {[%clk 0:02:40.5]} 16... Nxd5 {[%clk 0:02:21.1]} 17. cxd5
{[%clk 0:02:40.3]} 17... Qd7 {[%clk 0:02:16.8]} 18. f4 {[%clk 0:02:37]} 18...
Rae8 {[%clk 0:02:16.2]} 19. Rde1 {[%clk 0:02:34.8]} 19... Re7 {[%clk 0:02:11.7]}
20. h4 {[%clk 0:02:08.3]} 20... Rfe8 {[%clk 0:02:07.8]} 21. h5 {[%clk
0:02:07.7]} 21... Qg4 {[%clk 0:02:05]} 22. hxg6+ {[%clk 0:02:06.9]} 22... fxg6
{[%clk 0:02:04.9]} 23. Kh2 {[%clk 0:01:51.9]} 23... Bxd5 {[%clk 0:02:00.1]} 24.
Bh3 {[%clk 0:01:42.4]} 24... Qh5 {[%clk 0:01:52]} 25. g4 {[%clk 0:01:42.2]}
25... Qh4 {[%clk 0:01:49.7]} 26. Nf3 {[%clk 0:01:41.6]} 26... Rxe4 {[%clk
0:01:43.1]} 27. Nxh4 {[%clk 0:01:35]} 27... Rxe1 {[%clk 0:01:42.7]} 28. Rxe1
{[%clk 0:01:29.8]} 28... Rxe1 {[%clk 0:01:42.4]} 29. Bxg7 {[%clk 0:01:28.7]}
29... Rh1+ {[%clk 0:01:40.7]} 30. Kg3 {[%clk 0:01:29.1]} 30... Ne4+ {[%clk
0:01:39.2]} 31. Kg2 {[%clk 0:01:13.6]} 31... Ng5+ {[%clk 0:01:25.6]} 32. Kf2
{[%clk 0:01:06.2]} 32... Rxh3 {[%clk 0:01:16.9]} 33. Qxg6+ {[%clk 0:01:04.7]}
1-0

[Event "Early-Titled-Tuesday-Blitz-August-29-2023"]
[Site "Chess.com"]
[Date "2023.08.29"]
[Round "5"]
[White "Tomytoteph"]
[Black "RobertoJBM"]
[Result "1/2-1/2"]
[WhiteElo "2624"]
[BlackElo "2817"]
[TimeControl "180+1"]
[EndTime "8:53:00 PDT"]
[Termination "Game drawn by repetition"]

1. e4 {[%clk 0:02:55.8]} 1... c6 {[%clk 0:02:59.9]} 2. d4 {[%clk 0:02:54.1]}
2... d5 {[%clk 0:03:00.8]} 3. Nd2 {[%clk 0:02:53.7]} 3... dxe4 {[%clk
0:03:00.9]} 4. Nxe4 {[%clk 0:02:54.6]} 4... Nd7 {[%clk 0:03:01.4]} 5. Nf3 {[%clk
0:02:53.7]} 5... Ngf6 {[%clk 0:03:01.5]} 6. Nxf6+ {[%clk 0:02:52.1]} 6... Nxf6
{[%clk 0:03:02.4]} 7. Bd3 {[%clk 0:02:52.6]} 7... Bg4 {[%clk 0:03:01.2]} 8. c3
{[%clk 0:02:53.1]} 8... Qd5 {[%clk 0:03:01.2]} 9. h3 {[%clk 0:02:52.3]} 9...
Bxf3 {[%clk 0:03:00.9]} 10. Qxf3 {[%clk 0:02:53.2]} 10... Qxf3 {[%clk
0:03:00.7]} 11. gxf3 {[%clk 0:02:54.1]} 11... g6 {[%clk 0:02:59.1]} 12. f4
{[%clk 0:02:54.2]} 12... e6 {[%clk 0:02:59]} 13. Be3 {[%clk 0:02:53.4]} 13...
Nd5 {[%clk 0:02:57.3]} 14. O-O-O {[%clk 0:02:53.3]} 14... Bh6 {[%clk 0:02:54.3]}
15. h4 {[%clk 0:02:36.1]} 15... Bxf4 {[%clk 0:02:52.7]} 16. Bxf4 {[%clk
0:02:34.9]} 16... Nxf4 {[%clk 0:02:52.7]} 17. Be4 {[%clk 0:02:34.8]} 17... f5
{[%clk 0:02:50.6]} 18. Bc2 {[%clk 0:02:34.1]} 18... Kf7 {[%clk 0:02:49.7]} 19.
Rde1 {[%clk 0:02:33.4]} 19... Rae8 {[%clk 0:02:45.1]} 20. Bb3 {[%clk 0:02:33.1]}
20... Re7 {[%clk 0:02:41.9]} 21. Kd2 {[%clk 0:02:33.1]} 21... Rd8 {[%clk
0:02:39.8]} 22. Re5 {[%clk 0:02:26.9]} 22... Kf6 {[%clk 0:02:37.4]} 23. Rhe1
{[%clk 0:02:17.3]} 23... Rd6 {[%clk 0:02:37]} 24. Rg1 {[%clk 0:02:12.6]} 24...
b6 {[%clk 0:02:35.7]} 25. Ke3 {[%clk 0:02:07.3]} 25... Nd5+ {[%clk 0:02:27.6]}
26. Bxd5 {[%clk 0:02:06.6]} 26... exd5 {[%clk 0:02:27.4]} 27. f4 {[%clk
0:02:06.7]} 27... Rd8 {[%clk 0:02:18.4]} 28. Kf3 {[%clk 0:02:00.8]} 28... Rxe5
{[%clk 0:02:14.4]} 29. fxe5+ {[%clk 0:02:00.2]} 29... Kg7 {[%clk 0:02:07.4]} 30.
Kf4 {[%clk 0:01:59.2]} 30... Re8 {[%clk 0:02:04.1]} 31. b4 {[%clk 0:01:52.1]}
31... Kh6 {[%clk 0:01:59]} 32. a4 {[%clk 0:01:50.2]} 32... Re7 {[%clk
0:01:56.3]} 33. Ra1 {[%clk 0:01:50]} 33... Kh5 {[%clk 0:01:52.8]} 34. Re1 {[%clk
0:01:43.4]} 34... Re6 {[%clk 0:01:51.7]} 35. Rg1 {[%clk 0:01:43.1]} 35... Kh6
{[%clk 0:01:44]} 36. Ra1 {[%clk 0:01:42.4]} 36... a6 {[%clk 0:01:40.1]} 37. a5
{[%clk 0:01:42]} 37... b5 {[%clk 0:01:37.7]} 38. Rh1 {[%clk 0:01:41.5]} 38...
Kh5 {[%clk 0:01:37]} 39. Rh2 {[%clk 0:01:42]} 39... Re7 {[%clk 0:01:36.3]} 40.
Rh1 {[%clk 0:01:42.4]} 40... Kh6 {[%clk 0:01:35.7]} 41. Rh2 {[%clk 0:01:42.9]}
41... Kg7 {[%clk 0:01:34.1]} 42. Rh1 {[%clk 0:01:41.8]} 42... Re8 {[%clk
0:01:32.4]} 43. Rg1 {[%clk 0:01:38.2]} 43... Kh6 {[%clk 0:01:26.7]} 44. Rg2
{[%clk 0:01:37.9]} 44... Re7 {[%clk 0:01:26.6]} 45. Rg5 {[%clk 0:01:37.5]} 45...
Re6 {[%clk 0:01:26.2]} 46. Ke3 {[%clk 0:01:36.6]} 46... Kg7 {[%clk 0:01:25.3]}
47. Kf4 {[%clk 0:01:37.1]} 47... Re8 {[%clk 0:01:22.8]} 48. Rg1 {[%clk
0:01:36.9]} 48... Kf7 {[%clk 0:01:22.6]} 49. Rh1 {[%clk 0:01:36.8]} 49... Kg7
{[%clk 0:01:20.3]} 50. Rg1 {[%clk 0:01:36.4]} 1/2-1/2